[Event "Titled Tuesday Blitz May 16 Early 2023"]
[White "Tomiello, Mateus Costamilan"]
[Black "Rodchenkov, Sergey D."]
[WhiteFideId "22701958"]
[BlackFideId "4168712"]
[WhiteElo "1990"]
[BlackElo "2277"]
[Result "1-0"]
[Round "10"]
[TimeControl "180+2"]
[Date "2023.05.16"]
[WhiteClock "0:00:17"]
[BlackClock "0:00:00"]

1. e4 {[%clk 0:02:56]}  c5 {[%clk 0:02:59]} 2. Nf3 {[%clk 0:02:54]}  d6 {[%clk 0:03:00]} 3. d4 {[%clk 0:02:51]}  cxd4 {[%clk 0:03:01]} 4. Nxd4 {[%clk 0:02:51]}  Nf6 {[%clk 0:03:00]} 5. Nc3 {[%clk 0:02:52]}  a6 {[%clk 0:03:01]} 6. Be2 {[%clk 0:02:46]}  e5 {[%clk 0:02:56]} 7. Nb3 {[%clk 0:02:46]}  Be7 {[%clk 0:02:56]} 8. O-O {[%clk 0:02:46]}  O-O {[%clk 0:02:56]} 9. Be3 {[%clk 0:02:44]}  Nbd7 {[%clk 0:02:49]} 10. Qd3 {[%clk 0:02:40]}  b6 {[%clk 0:02:36]} 11. Nd5 {[%clk 0:02:33]}  Nxd5 {[%clk 0:02:25]} 12. exd5 {[%clk 0:02:32]}  f5 {[%clk 0:02:14]} 13. f4 {[%clk 0:02:23]}  a5 {[%clk 0:02:05]} 14. a4 {[%clk 0:02:14]}  Ba6 {[%clk 0:02:03]} 15. Qd2 {[%clk 0:02:14]}  Bb7 {[%clk 0:01:54]} 16. Rad1 {[%clk 0:02:09]}  Kh8 {[%clk 0:01:53]} 17. Bb5 {[%clk 0:02:07]}  Rc8 {[%clk 0:01:48]} 18. c4 {[%clk 0:01:58]}  Nf6 {[%clk 0:01:39]} 19. Qd3 {[%clk 0:01:40]}  Ng4 {[%clk 0:01:29]} 20. Bc1 {[%clk 0:01:36]}  Bf6 {[%clk 0:00:45]} 21. h3 {[%clk 0:01:34]}  e4 {[%clk 0:00:45]} 22. Qe2 {[%clk 0:01:28]}  Nh6 {[%clk 0:00:43]} 23. Nd4 {[%clk 0:01:28]}  Qe7 {[%clk 0:00:41]} 24. Ne6 {[%clk 0:01:26]}  Rg8 {[%clk 0:00:40]} 25. b3 {[%clk 0:01:25]}  Ra8 {[%clk 0:00:33]} 26. g4 {[%clk 0:01:13]}  fxg4 {[%clk 0:00:12]} 27. hxg4 {[%clk 0:01:12]}  Bc3 {[%clk 0:00:12]} 28. g5 {[%clk 0:00:49]}  Nf5 {[%clk 0:00:11]} 29. Qxe4 {[%clk 0:00:49]}  Ng3 {[%clk 0:00:09]} 30. Qd3 {[%clk 0:00:48]}  Nxf1 {[%clk 0:00:10]} 31. Qxc3 {[%clk 0:00:47]}  Bc8 {[%clk 0:00:07]} 32. Rxf1 {[%clk 0:00:43]}  Bxe6 {[%clk 0:00:08]} 33. dxe6 {[%clk 0:00:42]}  Qxe6 {[%clk 0:00:07]} 34. Bc6 {[%clk 0:00:42]}  Rae8 {[%clk 0:00:05]} 35. Bd5 {[%clk 0:00:38]}  Qg4+ {[%clk 0:00:04]} 36. Bg2 {[%clk 0:00:30]}  Re2 {[%clk 0:00:05]} 37. Rf2 {[%clk 0:00:30]}  Rge8 {[%clk 0:00:05]} 38. Qf3 {[%clk 0:00:24]}  Re1+ {[%clk 0:00:03]} 39. Rf1 {[%clk 0:00:24]}  Qxf3 {[%clk 0:00:03]} 40. Bxf3 {[%clk 0:00:23]}  Rxf1+ {[%clk 0:00:02]} 41. Kxf1 {[%clk 0:00:23]}  g6 {[%clk 0:00:02]} 42. Bb2+ {[%clk 0:00:20]}  Kg8 {[%clk 0:00:03]} 43. Bd5+ {[%clk 0:00:19]}  Kf8 {[%clk 0:00:04]} 44. Kf2 {[%clk 0:00:19]}  Rc8 {[%clk 0:00:02]} 45. Bd4 {[%clk 0:00:19]}  Rb8 {[%clk 0:00:02]} 46. Ke3 {[%clk 0:00:20]}  Re8+ {[%clk 0:00:02]} 47. Kf3 {[%clk 0:00:20]}  Re1 {[%clk 0:00:02]} 48. Bxb6 {[%clk 0:00:20]}  Rb1 {[%clk 0:00:03]} 49. Bxa5 {[%clk 0:00:19]}  Rxb3+ {[%clk 0:00:03]} 50. Ke4 {[%clk 0:00:19]}  Ra3 {[%clk 0:00:03]} 51. Bb4 {[%clk 0:00:19]}  Rxa4 {[%clk 0:00:04]} 52. Bxd6+ {[%clk 0:00:20]}  Ke8 {[%clk 0:00:05]} 53. Ke5 {[%clk 0:00:20]}  Ra1 {[%clk 0:00:03]} 54. c5 {[%clk 0:00:20]}  Rd1 {[%clk 0:00:03]} 55. Be6 {[%clk 0:00:18]}  Re1+ {[%clk 0:00:02]} 56. Kf6 {[%clk 0:00:19]}  Rc1 {[%clk 0:00:03]} 57. Bf7+ {[%clk 0:00:17]}  Kd7 {[%clk 0:00:03]} 58. Kg7 {[%clk 0:00:18]}  Rh1 {[%clk 0:00:03]} 59. Bg8 {[%clk 0:00:18]}  Kc6 {[%clk 0:00:02]} 60. Bxh7 {[%clk 0:00:18]}  Rh4 {[%clk 0:00:02]} 61. Bxg6 {[%clk 0:00:17]}  Rh1 {[%clk 0:00:00]} 62. Be4+ {[%clk 0:00:17]} 1-0


[Site "https://www.chess.com"]

[Event "Titled Tuesday Blitz May 16 Early 2023"]
[White "Bethke, Richard"]
[Black "Li, Hui"]
[WhiteFideId "12959243"]
[BlackFideId "15400310"]
[WhiteElo "2369"]
[BlackElo "1966"]
[Result "1-0"]
[Round "10"]
[TimeControl "180+2"]
[Date "2023.05.16"]
[WhiteClock "0:00:19"]
[BlackClock "0:00:00"]

1. e4 {[%clk 0:01:43]}  e5 {[%clk 0:02:59]} 2. Nf3 {[%clk 0:01:40]}  Nf6 {[%clk 0:02:59]} 3. Bc4 {[%clk 0:01:40]}  Nxe4 {[%clk 0:02:58]} 4. Nc3 {[%clk 0:01:39]}  Nc6 {[%clk 0:02:58]} 5. Bxf7+ {[%clk 0:01:38]}  Kxf7 {[%clk 0:02:59]} 6. Nxe4 {[%clk 0:01:39]}  d5 {[%clk 0:02:59]} 7. Ng3 {[%clk 0:01:37]}  e4 {[%clk 0:02:58]} 8. Ng1 {[%clk 0:01:37]}  h5 {[%clk 0:02:51]} 9. Nxh5 {[%clk 0:01:35]}  Qh4 {[%clk 0:02:14]} 10. Ng3 {[%clk 0:01:28]}  Bg4 {[%clk 0:02:11]} 11. N1e2 {[%clk 0:01:25]}  Nd4 {[%clk 0:02:02]} 12. d3 {[%clk 0:01:17]}  Bc5 {[%clk 0:01:27]} 13. Be3 {[%clk 0:01:12]}  Nxe2 {[%clk 0:01:13]} 14. Bxc5 {[%clk 0:01:10]}  Nxg3 {[%clk 0:00:49]} 15. fxg3 {[%clk 0:01:11]}  Qxg3+ {[%clk 0:00:29]} 16. hxg3 {[%clk 0:01:10]}  Rxh1+ {[%clk 0:00:29]} 17. Kd2 {[%clk 0:01:09]}  Rxd1+ {[%clk 0:00:29]} 18. Rxd1 {[%clk 0:01:09]}  Bxd1 {[%clk 0:00:30]} 19. Kxd1 {[%clk 0:01:10]}  b6 {[%clk 0:00:24]} 20. Be3 {[%clk 0:01:08]}  Re8 {[%clk 0:00:23]} 21. d4 {[%clk 0:01:07]}  Ke6 {[%clk 0:00:22]} 22. Bf4 {[%clk 0:01:07]}  c5 {[%clk 0:00:20]} 23. Be5 {[%clk 0:01:07]}  g6 {[%clk 0:00:18]} 24. c3 {[%clk 0:01:07]}  Kf5 {[%clk 0:00:18]} 25. Bc7 {[%clk 0:01:04]}  e3 {[%clk 0:00:15]} 26. Ke2 {[%clk 0:01:03]}  Ke4 {[%clk 0:00:15]} 27. Be5 {[%clk 0:01:01]}  cxd4 {[%clk 0:00:14]} 28. Bxd4 {[%clk 0:01:01]}  Kf5 {[%clk 0:00:09]} 29. Bxe3 {[%clk 0:01:00]}  Kg4 {[%clk 0:00:09]} 30. Kf2 {[%clk 0:00:54]}  Rxe3 {[%clk 0:00:09]} 31. Kxe3 {[%clk 0:00:54]}  Kxg3 {[%clk 0:00:10]} 32. b3 {[%clk 0:00:55]}  Kxg2 {[%clk 0:00:10]} 33. Kf4 {[%clk 0:00:55]}  Kf2 {[%clk 0:00:08]} 34. c4 {[%clk 0:00:55]}  d4 {[%clk 0:00:06]} 35. Ke4 {[%clk 0:00:55]}  g5 {[%clk 0:00:06]} 36. b4 {[%clk 0:00:54]}  g4 {[%clk 0:00:06]} 37. c5 {[%clk 0:00:54]}  bxc5 {[%clk 0:00:07]} 38. bxc5 {[%clk 0:00:55]}  g3 {[%clk 0:00:08]} 39. c6 {[%clk 0:00:55]}  g2 {[%clk 0:00:08]} 40. c7 {[%clk 0:00:56]}  g1=Q {[%clk 0:00:08]} 41. c8=Q {[%clk 0:00:56]}  Ke1 {[%clk 0:00:02]} 42. Qc1+ {[%clk 0:00:51]}  Kf2 {[%clk 0:00:02]} 43. Qd2+ {[%clk 0:00:44]}  Kf1 {[%clk 0:00:01]} 44. Qd1+ {[%clk 0:00:39]}  Kg2 {[%clk 0:00:02]} 45. Qf3+ {[%clk 0:00:39]}  Kh2 {[%clk 0:00:02]} 46. Qh5+ {[%clk 0:00:39]}  Kg2 {[%clk 0:00:02]} 47. Qg4+ {[%clk 0:00:36]}  Kf1 {[%clk 0:00:02]} 48. Qf3+ {[%clk 0:00:32]}  Qf2 {[%clk 0:00:02]} 49. Qh1+ {[%clk 0:00:31]}  Qg1 {[%clk 0:00:02]} 50. Qf3+ {[%clk 0:00:30]}  Qf2 {[%clk 0:00:02]} 51. Qa3 {[%clk 0:00:24]}  Kg2 {[%clk 0:00:01]} 52. Qxa7 {[%clk 0:00:19]}  Qe3+ {[%clk 0:00:00]} 53. Kd5 {[%clk 0:00:19]} 1-0


[Site "https://www.chess.com"]

[Event "Titled Tuesday Blitz May 16 Early 2023"]
[White "Nastase, Robert-Paul"]
[Black "Mayeregger, Arnold"]
[WhiteFideId "1221175"]
[BlackFideId "3705226"]
[WhiteElo "2175"]
[BlackElo "2038"]
[Result "1-0"]
[Round "10"]
[TimeControl "180+2"]
[Date "2023.05.16"]
[WhiteClock "0:00:05"]
[BlackClock "0:00:00"]

1. e4 {[%clk 0:03:00]}  c5 {[%clk 0:02:54]} 2. Nc3 {[%clk 0:03:00]}  Nc6 {[%clk 0:02:54]} 3. Bb5 {[%clk 0:02:57]}  g6 {[%clk 0:02:54]} 4. f4 {[%clk 0:02:43]}  Nd4 {[%clk 0:02:54]} 5. Nf3 {[%clk 0:02:39]}  Bg7 {[%clk 0:02:55]} 6. Nxd4 {[%clk 0:02:37]}  cxd4 {[%clk 0:02:54]} 7. Ne2 {[%clk 0:02:36]}  e6 {[%clk 0:02:55]} 8. c3 {[%clk 0:02:30]}  dxc3 {[%clk 0:02:53]} 9. dxc3 {[%clk 0:02:25]}  Ne7 {[%clk 0:02:53]} 10. Be3 {[%clk 0:02:16]}  a6 {[%clk 0:02:51]} 11. Ba4 {[%clk 0:02:12]}  b5 {[%clk 0:02:50]} 12. Bc2 {[%clk 0:02:09]}  d5 {[%clk 0:02:50]} 13. O-O {[%clk 0:02:07]}  Bb7 {[%clk 0:02:50]} 14. exd5 {[%clk 0:02:01]}  Nxd5 {[%clk 0:02:49]} 15. Bc5 {[%clk 0:02:02]}  Qc7 {[%clk 0:02:49]} 16. Bd4 {[%clk 0:01:54]}  O-O {[%clk 0:02:45]} 17. Bxg7 {[%clk 0:01:53]}  Kxg7 {[%clk 0:02:46]} 18. Qd4+ {[%clk 0:01:52]}  Kg8 {[%clk 0:02:46]} 19. Rad1 {[%clk 0:01:46]}  Rfd8 {[%clk 0:02:46]} 20. Ng3 {[%clk 0:01:32]}  Rac8 {[%clk 0:02:39]} 21. Ne4 {[%clk 0:01:28]}  f5 {[%clk 0:02:23]} 22. Ng5 {[%clk 0:01:25]}  Qc6 {[%clk 0:02:09]} 23. Nf3 {[%clk 0:00:58]}  Qc5 {[%clk 0:02:00]} 24. Qxc5 {[%clk 0:00:52]}  Rxc5 {[%clk 0:02:01]} 25. Nd4 {[%clk 0:00:53]}  Bc8 {[%clk 0:02:00]} 26. Rde1 {[%clk 0:00:49]}  Kf7 {[%clk 0:02:00]} 27. Bb3 {[%clk 0:00:48]}  Kf6 {[%clk 0:01:51]} 28. Re5 {[%clk 0:00:45]}  Rc7 {[%clk 0:01:45]} 29. g3 {[%clk 0:00:40]}  b4 {[%clk 0:01:41]} 30. Rfe1 {[%clk 0:00:35]}  bxc3 {[%clk 0:01:37]} 31. bxc3 {[%clk 0:00:36]}  Rxc3 {[%clk 0:01:24]} 32. Nxe6 {[%clk 0:00:34]}  Bxe6 {[%clk 0:01:21]} 33. Rxe6+ {[%clk 0:00:34]}  Kg7 {[%clk 0:01:22]} 34. Rd1 {[%clk 0:00:31]}  Rc5 {[%clk 0:00:25]} 35. Re5 {[%clk 0:00:30]}  Rdc8 {[%clk 0:00:18]} 36. Rexd5 {[%clk 0:00:30]}  Rxd5 {[%clk 0:00:17]} 37. Rxd5 {[%clk 0:00:30]}  Rc1+ {[%clk 0:00:18]} 38. Rd1 {[%clk 0:00:30]}  Rc6 {[%clk 0:00:18]} 39. Kg2 {[%clk 0:00:27]}  Kf6 {[%clk 0:00:18]} 40. h3 {[%clk 0:00:25]}  h6 {[%clk 0:00:18]} 41. h4 {[%clk 0:00:25]}  g5 {[%clk 0:00:18]} 42. Rd7 {[%clk 0:00:19]}  g4 {[%clk 0:00:15]} 43. Rf7+ {[%clk 0:00:18]}  Kg6 {[%clk 0:00:15]} 44. Rd7 {[%clk 0:00:18]}  a5 {[%clk 0:00:13]} 45. Rd5 {[%clk 0:00:16]}  Re6 {[%clk 0:00:10]} 46. Rxa5 {[%clk 0:00:14]}  Re2+ {[%clk 0:00:10]} 47. Kg1 {[%clk 0:00:15]}  Re3 {[%clk 0:00:10]} 48. Kf2 {[%clk 0:00:15]}  Rf3+ {[%clk 0:00:11]} 49. Kg2 {[%clk 0:00:16]}  Rd3 {[%clk 0:00:11]} 50. Rd5 {[%clk 0:00:15]}  Re3 {[%clk 0:00:11]} 51. Rd6+ {[%clk 0:00:15]}  Kg7 {[%clk 0:00:10]} 52. h5 {[%clk 0:00:14]}  Re2+ {[%clk 0:00:10]} 53. Kf1 {[%clk 0:00:13]}  Rh2 {[%clk 0:00:11]} 54. Rg6+ {[%clk 0:00:11]}  Kh7 {[%clk 0:00:10]} 55. Bg8+ {[%clk 0:00:10]}  Kh8 {[%clk 0:00:10]} 56. Be6 {[%clk 0:00:11]}  Rxh5 {[%clk 0:00:09]} 57. Rf6 {[%clk 0:00:11]}  Kg7 {[%clk 0:00:08]} 58. Rxf5 {[%clk 0:00:11]}  Rh3 {[%clk 0:00:09]} 59. Kg2 {[%clk 0:00:10]}  Kg6 {[%clk 0:00:08]} 60. Rf8 {[%clk 0:00:08]}  h5 {[%clk 0:00:08]} 61. f5+ {[%clk 0:00:06]}  Kg5 {[%clk 0:00:08]} 62. f6 {[%clk 0:00:05]}  h4 {[%clk 0:00:09]} 63. gxh4+ {[%clk 0:00:04]}  Rxh4 {[%clk 0:00:06]} 64. f7 {[%clk 0:00:04]}  g3 {[%clk 0:00:02]} 65. Rg8+ {[%clk 0:00:04]}  Kf4 {[%clk 0:00:00]} 66. f8=Q+ {[%clk 0:00:05]} 1-0


[Site "https://www.chess.com"]

[Event "Titled Tuesday Blitz May 16 Early 2023"]
[White "Matveeva, Olga"]
[Black "Santarius, Erik"]
[WhiteFideId "24107018"]
[BlackFideId "2025817"]
[WhiteElo "2009"]
[BlackElo "2300"]
[Result "0-1"]
[Round "10"]
[TimeControl "180+2"]
[Date "2023.05.16"]
[WhiteClock "0:00:00"]
[BlackClock "0:00:08"]

1. d4 {[%clk 0:03:00]}  d5 {[%clk 0:02:48]} 2. c4 {[%clk 0:03:01]}  e6 {[%clk 0:02:44]} 3. Nf3 {[%clk 0:03:01]}  Nf6 {[%clk 0:02:44]} 4. g3 {[%clk 0:03:02]}  Bb4+ {[%clk 0:02:44]} 5. Bd2 {[%clk 0:03:01]}  Be7 {[%clk 0:02:39]} 6. Bg2 {[%clk 0:03:01]}  O-O {[%clk 0:02:39]} 7. O-O {[%clk 0:03:02]}  Nbd7 {[%clk 0:02:37]} 8. Qc2 {[%clk 0:03:02]}  Ne4 {[%clk 0:02:32]} 9. Rd1 {[%clk 0:03:00]}  c6 {[%clk 0:02:26]} 10. Nc3 {[%clk 0:02:58]}  f5 {[%clk 0:02:22]} 11. Be1 {[%clk 0:02:54]}  Bd6 {[%clk 0:02:19]} 12. b3 {[%clk 0:02:51]}  Qf6 {[%clk 0:02:15]} 13. e3 {[%clk 0:02:48]}  g5 {[%clk 0:02:12]} 14. Ne2 {[%clk 0:02:40]}  Rf7 {[%clk 0:01:59]} 15. Rac1 {[%clk 0:02:30]}  Nf8 {[%clk 0:01:59]} 16. b4 {[%clk 0:02:18]}  Bd7 {[%clk 0:01:57]} 17. a4 {[%clk 0:02:08]}  Ng6 {[%clk 0:01:54]} 18. b5 {[%clk 0:02:06]}  h5 {[%clk 0:01:50]} 19. bxc6 {[%clk 0:01:34]}  bxc6 {[%clk 0:01:45]} 20. cxd5 {[%clk 0:01:33]}  cxd5 {[%clk 0:01:45]} 21. Ba5 {[%clk 0:01:30]}  f4 {[%clk 0:01:40]} 22. exf4 {[%clk 0:01:16]}  gxf4 {[%clk 0:01:39]} 23. Ne5 {[%clk 0:01:07]}  Bxe5 {[%clk 0:01:15]} 24. dxe5 {[%clk 0:01:06]}  Qxe5 {[%clk 0:01:12]} 25. Bxe4 {[%clk 0:00:59]}  dxe4 {[%clk 0:01:09]} 26. Bc7 {[%clk 0:00:55]}  Qg5 {[%clk 0:00:52]} 27. Qxe4 {[%clk 0:00:52]}  Raf8 {[%clk 0:00:52]} 28. Rxd7 {[%clk 0:00:28]}  Rxd7 {[%clk 0:00:45]} 29. Qxe6+ {[%clk 0:00:28]}  Rff7 {[%clk 0:00:33]} 30. Nxf4 {[%clk 0:00:23]}  Kh7 {[%clk 0:00:22]} 31. Bd8 {[%clk 0:00:11]}  Nxf4 {[%clk 0:00:17]} 32. Qe4+ {[%clk 0:00:05]}  Qg6 {[%clk 0:00:16]} 33. Qe8 {[%clk 0:00:03]}  Nh3+ {[%clk 0:00:15]} 34. Kg2 {[%clk 0:00:01]}  Nf4+ {[%clk 0:00:14]} 35. Kg1 {[%clk 0:00:00]}  Nd3 {[%clk 0:00:08]} 0-1


[Site "https://www.chess.com"]

[Event "Titled Tuesday Blitz May 16 Early 2023"]
[White "Szente Varga, Fruzsina"]
[Black "Khamdamova, Afruza"]
[WhiteFideId "712264"]
[BlackFideId "14210444"]
[WhiteElo "1994"]
[BlackElo "2312"]
[Result "0-1"]
[Round "10"]
[TimeControl "180+2"]
[Date "2023.05.16"]
[WhiteClock "0:00:00"]
[BlackClock "0:00:04"]

1. e4 {[%clk 0:03:00]}  e5 {[%clk 0:03:00]} 2. Nf3 {[%clk 0:02:58]}  Nf6 {[%clk 0:03:00]} 3. Nc3 {[%clk 0:02:57]}  Nc6 {[%clk 0:03:00]} 4. d4 {[%clk 0:02:57]}  exd4 {[%clk 0:03:00]} 5. Nd5 {[%clk 0:02:58]}  Bb4+ {[%clk 0:02:08]} 6. Nxb4 {[%clk 0:02:57]}  Nxb4 {[%clk 0:02:08]} 7. Bg5 {[%clk 0:02:38]}  d6 {[%clk 0:02:05]} 8. Nxd4 {[%clk 0:02:30]}  Qe7 {[%clk 0:02:04]} 9. Bd3 {[%clk 0:02:13]}  Nxd3+ {[%clk 0:02:00]} 10. cxd3 {[%clk 0:02:09]}  Qe5 {[%clk 0:01:47]} 11. Bxf6 {[%clk 0:02:01]}  Qxf6 {[%clk 0:01:37]} 12. Nb5 {[%clk 0:01:56]}  Qe7 {[%clk 0:01:37]} 13. Rc1 {[%clk 0:01:51]}  c6 {[%clk 0:01:37]} 14. Nc3 {[%clk 0:01:49]}  O-O {[%clk 0:01:35]} 15. O-O {[%clk 0:01:49]}  Be6 {[%clk 0:01:28]} 16. f4 {[%clk 0:01:45]}  f5 {[%clk 0:01:28]} 17. Qe2 {[%clk 0:01:40]}  Qf7 {[%clk 0:01:27]} 18. b3 {[%clk 0:01:27]}  Rae8 {[%clk 0:01:27]} 19. Qf2 {[%clk 0:01:24]}  b6 {[%clk 0:01:21]} 20. Rce1 {[%clk 0:01:15]}  Bd7 {[%clk 0:01:13]} 21. e5 {[%clk 0:01:06]}  dxe5 {[%clk 0:00:57]} 22. fxe5 {[%clk 0:01:07]}  c5 {[%clk 0:00:56]} 23. Qf3 {[%clk 0:00:50]}  Be6 {[%clk 0:00:55]} 24. Nb5 {[%clk 0:00:47]}  Qd7 {[%clk 0:00:51]} 25. Nd6 {[%clk 0:00:46]}  Rd8 {[%clk 0:00:50]} 26. Qe3 {[%clk 0:00:38]}  Qc6 {[%clk 0:00:46]} 27. Qg5 {[%clk 0:00:32]}  Qd7 {[%clk 0:00:33]} 28. Rf3 {[%clk 0:00:31]}  Kh8 {[%clk 0:00:25]} 29. Ref1 {[%clk 0:00:28]}  g6 {[%clk 0:00:14]} 30. Rh3 {[%clk 0:00:26]}  Qg7 {[%clk 0:00:15]} 31. Re1 {[%clk 0:00:20]}  Rd7 {[%clk 0:00:15]} 32. Rg3 {[%clk 0:00:16]}  a6 {[%clk 0:00:14]} 33. h4 {[%clk 0:00:16]}  Qe7 {[%clk 0:00:11]} 34. Qf4 {[%clk 0:00:16]}  Bg8 {[%clk 0:00:07]} 35. Kf2 {[%clk 0:00:16]}  b5 {[%clk 0:00:06]} 36. Rh1 {[%clk 0:00:10]}  Qe6 {[%clk 0:00:06]} 37. h5 {[%clk 0:00:09]}  gxh5 {[%clk 0:00:06]} 38. Rxh5 {[%clk 0:00:09]}  Qd5 {[%clk 0:00:06]} 39. Qh4 {[%clk 0:00:00]}  Qxe5 {[%clk 0:00:04]} 0-1


[Site "https://www.chess.com"]

[Event "Titled Tuesday Blitz May 16 Early 2023"]
[White "Lehtosaari, Mauri"]
[Black "Mikhaylova, Irina"]
[WhiteFideId "501999"]
[BlackFideId "4109040"]
[WhiteElo "2491"]
[BlackElo "1975"]
[Result "1-0"]
[Round "10"]
[TimeControl "180+2"]
[Date "2023.05.16"]
[WhiteClock "0:00:18"]
[BlackClock "0:00:00"]

1. d4 {[%clk 0:03:00]}  Nf6 {[%clk 0:02:59]} 2. Nf3 {[%clk 0:03:00]}  g6 {[%clk 0:02:59]} 3. Bg5 {[%clk 0:03:01]}  Bg7 {[%clk 0:02:59]} 4. Nbd2 {[%clk 0:02:54]}  d5 {[%clk 0:02:41]} 5. e3 {[%clk 0:02:48]}  O-O {[%clk 0:02:41]} 6. Bd3 {[%clk 0:02:41]}  c5 {[%clk 0:02:41]} 7. c3 {[%clk 0:02:40]}  b6 {[%clk 0:02:40]} 8. O-O {[%clk 0:02:39]}  Ba6 {[%clk 0:02:40]} 9. Bxa6 {[%clk 0:02:38]}  Nxa6 {[%clk 0:02:40]} 10. a4 {[%clk 0:02:35]}  Nb8 {[%clk 0:02:39]} 11. Qb3 {[%clk 0:02:34]}  Nc6 {[%clk 0:02:35]} 12. Rfd1 {[%clk 0:02:31]}  c4 {[%clk 0:02:15]} 13. Qa2 {[%clk 0:02:19]}  h6 {[%clk 0:02:15]} 14. Bxf6 {[%clk 0:02:17]}  Bxf6 {[%clk 0:02:15]} 15. e4 {[%clk 0:02:18]}  e6 {[%clk 0:02:15]} 16. exd5 {[%clk 0:02:15]}  exd5 {[%clk 0:02:15]} 17. b3 {[%clk 0:02:05]}  cxb3 {[%clk 0:02:07]} 18. Qxb3 {[%clk 0:02:04]}  Qd6 {[%clk 0:02:01]} 19. Nf1 {[%clk 0:01:53]}  Na5 {[%clk 0:01:48]} 20. Qa2 {[%clk 0:01:47]}  Nc4 {[%clk 0:01:38]} 21. N3d2 {[%clk 0:01:38]}  Nxd2 {[%clk 0:01:23]} 22. Rxd2 {[%clk 0:01:36]}  Bg5 {[%clk 0:01:23]} 23. Rd3 {[%clk 0:01:31]}  Rac8 {[%clk 0:01:19]} 24. g3 {[%clk 0:01:29]}  h5 {[%clk 0:01:19]} 25. h4 {[%clk 0:01:26]}  Bh6 {[%clk 0:01:19]} 26. Re1 {[%clk 0:01:22]}  Rfe8 {[%clk 0:01:15]} 27. Ne3 {[%clk 0:01:16]}  Bxe3 {[%clk 0:01:14]} 28. Rdxe3 {[%clk 0:01:16]}  Rxe3 {[%clk 0:01:10]} 29. Rxe3 {[%clk 0:01:17]}  Qc6 {[%clk 0:01:05]} 30. a5 {[%clk 0:01:10]}  b5 {[%clk 0:00:59]} 31. a6 {[%clk 0:01:05]}  Qc4 {[%clk 0:00:48]} 32. Qxc4 {[%clk 0:00:44]}  Rxc4 {[%clk 0:00:47]} 33. Re7 {[%clk 0:00:44]}  Rxc3 {[%clk 0:00:46]} 34. Rxa7 {[%clk 0:00:45]}  Ra3 {[%clk 0:00:46]} 35. Rb7 {[%clk 0:00:35]}  Rxa6 {[%clk 0:00:44]} 36. Rxb5 {[%clk 0:00:35]}  Rd6 {[%clk 0:00:42]} 37. Kg2 {[%clk 0:00:36]}  Kg7 {[%clk 0:00:41]} 38. Kf3 {[%clk 0:00:36]}  Kf6 {[%clk 0:00:42]} 39. Kf4 {[%clk 0:00:36]}  Ke6 {[%clk 0:00:39]} 40. f3 {[%clk 0:00:33]}  Ra6 {[%clk 0:00:39]} 41. g4 {[%clk 0:00:32]}  hxg4 {[%clk 0:00:38]} 42. fxg4 {[%clk 0:00:33]}  Rc6 {[%clk 0:00:33]} 43. h5 {[%clk 0:00:29]}  gxh5 {[%clk 0:00:29]} 44. gxh5 {[%clk 0:00:29]}  Rd6 {[%clk 0:00:29]} 45. Kg5 {[%clk 0:00:28]}  Rd8 {[%clk 0:00:16]} 46. Rb6+ {[%clk 0:00:25]}  Ke7 {[%clk 0:00:16]} 47. h6 {[%clk 0:00:23]}  Rg8+ {[%clk 0:00:16]} 48. Kf5 {[%clk 0:00:23]}  Rg1 {[%clk 0:00:16]} 49. Rb7+ {[%clk 0:00:19]}  Kf8 {[%clk 0:00:16]} 50. Rb8+ {[%clk 0:00:19]}  Ke7 {[%clk 0:00:16]} 51. h7 {[%clk 0:00:19]}  Rf1+ {[%clk 0:00:16]} 52. Kg4 {[%clk 0:00:17]}  Rg1+ {[%clk 0:00:16]} 53. Kf3 {[%clk 0:00:17]}  Rh1 {[%clk 0:00:16]} 54. h8=Q {[%clk 0:00:17]}  Rxh8 {[%clk 0:00:00]} 55. Rxh8 {[%clk 0:00:18]} 1-0


[Site "https://www.chess.com"]

[Event "Titled Tuesday Blitz May 16 Early 2023"]
[White "Blokhin, Sofia"]
[Black "Mrudul Dehankar"]
[WhiteFideId "4508190"]
[BlackFideId "25096990"]
[WhiteElo "1994"]
[BlackElo "2139"]
[Result "1-0"]
[Round "10"]
[TimeControl "180+2"]
[Date "2023.05.16"]
[WhiteClock "0:00:06"]
[BlackClock "0:00:01"]

1. d4 {[%clk 0:03:00]}  Nf6 {[%clk 0:02:53]} 2. c4 {[%clk 0:03:00]}  e6 {[%clk 0:02:54]} 3. Nc3 {[%clk 0:02:59]}  Bb4 {[%clk 0:02:54]} 4. f3 {[%clk 0:03:00]}  d5 {[%clk 0:02:52]} 5. a3 {[%clk 0:02:59]}  Bxc3+ {[%clk 0:02:48]} 6. bxc3 {[%clk 0:02:59]}  c5 {[%clk 0:02:48]} 7. cxd5 {[%clk 0:02:56]}  Nxd5 {[%clk 0:02:44]} 8. Qd3 {[%clk 0:02:36]}  Nc6 {[%clk 0:01:57]} 9. e4 {[%clk 0:02:33]}  Nb6 {[%clk 0:01:10]} 10. Be3 {[%clk 0:02:29]}  c4 {[%clk 0:00:59]} 11. Qc2 {[%clk 0:02:27]}  O-O {[%clk 0:00:56]} 12. Nh3 {[%clk 0:02:25]}  Qe7 {[%clk 0:00:53]} 13. Qa2 {[%clk 0:02:21]}  Na5 {[%clk 0:00:51]} 14. Be2 {[%clk 0:02:15]}  Bd7 {[%clk 0:00:50]} 15. O-O {[%clk 0:02:12]}  f5 {[%clk 0:00:41]} 16. Qc2 {[%clk 0:02:08]}  Ba4 {[%clk 0:00:38]} 17. Qb2 {[%clk 0:02:02]}  Nb3 {[%clk 0:00:28]} 18. Rae1 {[%clk 0:01:59]}  h6 {[%clk 0:00:20]} 19. Bf2 {[%clk 0:01:57]}  Rad8 {[%clk 0:00:18]} 20. Bd1 {[%clk 0:01:52]}  Qf7 {[%clk 0:00:18]} 21. Bc2 {[%clk 0:01:48]}  f4 {[%clk 0:00:15]} 22. Bh4 {[%clk 0:01:37]}  g5 {[%clk 0:00:15]} 23. Bf2 {[%clk 0:01:35]}  Qg7 {[%clk 0:00:14]} 24. Bd1 {[%clk 0:01:30]}  Rfe8 {[%clk 0:00:12]} 25. Kh1 {[%clk 0:01:17]}  h5 {[%clk 0:00:09]} 26. Ng1 {[%clk 0:01:16]}  Rf8 {[%clk 0:00:09]} 27. e5 {[%clk 0:01:07]}  g4 {[%clk 0:00:08]} 28. Bh4 {[%clk 0:01:04]}  Rde8 {[%clk 0:00:06]} 29. Bf6 {[%clk 0:01:02]}  Qg6 {[%clk 0:00:06]} 30. Bc2 {[%clk 0:00:59]}  Qh6 {[%clk 0:00:05]} 31. Ne2 {[%clk 0:00:49]}  Nd5 {[%clk 0:00:06]} 32. Bh4 {[%clk 0:00:39]}  Rf7 {[%clk 0:00:05]} 33. Bf2 {[%clk 0:00:35]}  Ref8 {[%clk 0:00:06]} 34. Be4 {[%clk 0:00:32]}  Bc6 {[%clk 0:00:05]} 35. Nc1 {[%clk 0:00:28]}  Rg7 {[%clk 0:00:05]} 36. Nxb3 {[%clk 0:00:27]}  cxb3 {[%clk 0:00:05]} 37. Qxb3 {[%clk 0:00:27]}  g3 {[%clk 0:00:06]} 38. Bg1 {[%clk 0:00:22]}  Qg5 {[%clk 0:00:04]} 39. h3 {[%clk 0:00:14]}  a6 {[%clk 0:00:03]} 40. c4 {[%clk 0:00:12]}  Ne7 {[%clk 0:00:03]} 41. Bxc6 {[%clk 0:00:12]}  Nxc6 {[%clk 0:00:03]} 42. Qc3 {[%clk 0:00:09]}  Ne7 {[%clk 0:00:02]} 43. Qd3 {[%clk 0:00:07]}  Nf5 {[%clk 0:00:03]} 44. d5 {[%clk 0:00:07]}  Rd8 {[%clk 0:00:02]} 45. d6 {[%clk 0:00:07]}  Rgd7 {[%clk 0:00:02]} 46. Bb6 {[%clk 0:00:06]}  Kf7 {[%clk 0:00:03]} 47. Bxd8 {[%clk 0:00:06]}  Qxd8 {[%clk 0:00:03]} 48. c5 {[%clk 0:00:06]}  Qh4 {[%clk 0:00:03]} 49. Qc4 {[%clk 0:00:07]}  Ne3 {[%clk 0:00:01]} 50. Rxe3 {[%clk 0:00:06]} 1-0


[Site "https://www.chess.com"]